fUSD/lending_fUSD_20240331
["ID","MTS","AMOUNT","RATE_DAILY","PERIOD"]
[321156660,1711921832539,-152.01,0.000541,7]
[321156661,1711921832549,-152.01,0.000541,7]
[321156662,1711921832559,-152.01,0.000541,7]
[321156663,1711921832568,-152.01,0.000541,7]
[321156664,1711921832578,-152.01,0.000541,7]
[321156665,1711921832588,-152.01,0.000541,7]
[321156666,1711921832598,-152.01,0.000541,7]
[321156667,1711921832611,-152.01,0.000541,7]
[321156668,1711921832621,-152.01,0.000541,7]
[321156669,1711921832630,-152.01,0.000541,7]
[321156670,1711921832640,-150.0,0.00054106,7]
[321156671,1711921832650,-719.92896,0.0005413,69]
[321156672,1711921832660,-201.13921008,0.00054134,3]
[321156673,1711921832669,-31985.28665731,0.0005414,2]
[321156674,1711921832679,-1265.77,0.0005414,2]
[321156675,1711921832691,-150.0,0.00054277,7]
[321156676,1711921832700,-161.63,0.00054338,2]
[321156677,1711921832709,-154.59,0.0005436,2]
[321156678,1711921832720,-209.97833856,0.00054386,14]
[321156679,1711921832729,-1393.3336,0.00054386,2]
[321156680,1711921832739,-287.0,0.00054428,120]
[321156681,1711921832748,-963.0,0.00054428,120]
[321156682,1711921832758,-702.621,0.00054428,120]
[321156683,1711921832767,-1251.0,0.00054428,120]
[321156684,1711921832777,-297.858,0.00054428,120]
[321156685,1711921832787,-1226.0,0.00054428,120]
[321156686,1711921832796,-414.0,0.00054428,120]
[321156687,1711921832807,-604.0,0.00054428,120]
[321156688,1711921832816,-367.022,0.00054428,120]
[321156689,1711921832825,-358.0,0.00054428,120]
[321156690,1711921832834,-1139.0,0.00054428,120]
[321156691,1711921832844,-1461.0,0.00054428,120]
[321156692,1711921832854,-375.12,0.00054428,120]
[321156693,1711921832864,-4778.0,0.00054428,120]
[321156694,1711921832873,-2555.226,0.00054428,120]
[321156695,1711921832883,-1048.0,0.00054428,120]
[321156696,1711921832893,-2441.2477,0.00054486,2]
[321156697,1711921832902,-5835.6357,0.00054486,2]
[321156698,1711921832912,-321.08478047,0.00054486,2]
[321156699,1711921832921,-1000.0,0.00054499,120]
[321156700,1711921832930,-13235.945372,0.000545,2]
[321156701,1711921832940,-289.04566704,0.00054576,2]
[321156702,1711921832950,-232.33216024,0.00054583,2]
[321156703,1711921832959,-547.16350628,0.00054584,2]
[321156704,1711921832969,-317.90071692,0.00054584,2]
[321156705,1711921832978,-336.62957728,0.00054585,120]
[321156706,1711921832989,-1878.3562,0.00054586,2]
[321156707,1711921832998,-100000.0,0.00054586,2]
[321156708,1711921833007,-245000.0,0.00054586,2]
[321156709,1711921833016,-159.53928892,0.00054586,32]
[321156710,1711921833026,-162.60927417,0.00054586,2]
[321156711,1711921833035,-150.19679371,0.00054586,120]
[321156712,1711921833045,-712.2939669,0.00054586,2]
[321156713,1711921833054,-212.0,0.00054586,2]
[321156714,1711921833064,-150.5,0.00054656,15]
[321156715,1711921833073,-256.0,0.00054656,15]
[321156716,1711921833083,-150.5,0.00054666,15]
[321156717,1711921833092,-256.0,0.00054666,15]
[321156718,1711921833102,-182783.2496127,0.00054673,2]
[321156719,1711921833112,-5637.3280802,0.00054673,2]
[321156720,1711921833121,-22104.0630317,0.00054673,2]
[321156721,1711921833130,-150.5,0.00054676,15]
[321156722,1711921833139,-256.0,0.00054676,15]
[321156723,1711921833149,-155.0,0.00054679,4]
[321156724,1711921833158,-196.21725431,0.00054679,4]
[321156725,1711921833168,-184.13623079,0.00054679,4]
[321156726,1711921833178,-308.48334315,0.00054679,4]
[321156727,1711921833187,-196.26787983,0.00054679,4]
[321156728,1711921833197,-155.0,0.00054679,4]
[321156729,1711921833207,-155.14111248,0.00054679,4]
[321156730,1711921833217,-349.71152649,0.00054679,4]
[321156731,1711921833227,-409.57672825,0.00054679,4]
[321156732,1711921833236,-283.75527799,0.00054679,4]
[321156733,1711921833246,-211.29076337,0.00054679,4]
[321156734,1711921833255,-490.677752,0.00054679,4]
[321156735,1711921833265,-263.34280345,0.00054679,4]
[321156736,1711921833275,-160.1119424,0.00054679,4]
[321156737,1711921833284,-5067.42485724,0.0005468,4]
[321156738,1711921833294,-1000.0,0.0005468,120]
[321156739,1711921833303,-38748.95306431,0.00054681,4]
[321156740,1711921833313,-838.06132381,0.00054681,2]
[321156741,1711921833323,-295.41221015,0.00054681,2]
[321156742,1711921833332,-1904.50942371,0.00054681,4]
[321156743,1711921833342,-2455.33346268,0.00054681,4]
[321156744,1711921833352,-862.28398827,0.00054681,4]
[321156745,1711921833362,-1565.37998075,0.00054681,4]
[321156746,1711921833371,-1000.0,0.00054681,2]
[321156747,1711921833381,-269.56270118,0.00054681,4]
[321156748,1711921833390,-1000.0,0.00054681,2]
[321156749,1711921833399,-1000.0,0.00054681,2]
[321156750,1711921833408,-1000.0,0.00054681,2]
[321156751,1711921833418,-1000.0,0.00054681,2]
[321156752,1711921833427,-1000.0,0.00054681,2]
[321156753,1711921833437,-1000.0,0.00054681,2]
[321156754,1711921833446,-1000.0,0.00054681,2]
[321156755,1711921833456,-1000.0,0.00054681,2]
[321156756,1711921833465,-1000.0,0.00054681,2]
[321156757,1711921833474,-1000.0,0.00054681,2]
[321156758,1711921833484,-1000.0,0.00054681,2]
[321156759,1711921833494,-1000.0,0.00054681,2]
[321156760,1711921833503,-1000.0,0.00054681,2]
[321156761,1711921833513,-1000.0,0.00054681,2]
[321156762,1711921833522,-1000.0,0.00054681,2]
[321156763,1711921833532,-1000.0,0.00054681,2]
[321156764,1711921833541,-1000.0,0.00054681,2]
[321156765,1711921833550,-1000.0,0.00054681,2]
[321156766,1711921833560,-1000.0,0.00054681,2]
[321156767,1711921833569,-843.01840981,0.00054681,2]
[321156768,1711921833579,-155.0,0.00054684,4]
[321156769,1711921833589,-3903.00871955,0.00054684,4]
[321156770,1711921833599,-806.18760338,0.00054684,4]
[321156771,1711921833613,-360.83535144,0.00054684,4]
[321156772,1711921833623,-465.31869696,0.00054684,4]
[321156773,1711921833633,-1052.71876365,0.00054685,4]
[321156774,1711921833642,-111901.22945597,0.00054686,36]
[321156775,1711921833657,-704.92261432,0.00054686,36]
[321156776,1711921833673,-250.0,0.00054686,36]
[321156777,1711921833692,-738.56513733,0.00054686,36]
[321156778,1711921833707,-14169.40000002,0.00054686,36]
[321156779,1711921833728,-71082.94500194,0.00054686,36]
[321156780,1711921833739,-709.9671,0.00054686,36]
[321156786,1711921837615,-181.02528908,0.00054134,3]
[321156787,1711921837624,-239.71897116,0.00054586,53]
[321156788,1711921837633,-2564.523017,0.00054686,36]
[321156789,1711921837644,-485.94,0.00054686,36]
[321156964,1711921839612,-24852.91953794,0.00054686,36]
[321157019,1711921842561,-1645.29368395,0.00054686,36]
[321157031,1711921842732,-11315.05516074,0.00054686,36]
[321157032,1711921842834,-165264.23260663,0.00054686,36]
[321157033,1711921842843,-565252.98239596,0.00054686,4]
[321157034,1711921842857,-14406.29128798,0.00054686,4]
[321157035,1711921842905,-836.60016149,0.00054686,4]
[321157036,1711921842917,-34791.4987507,0.00054686,4]
[321157037,1711921842928,-269.075,0.00054686,4]
[321157038,1711921842943,-15891.26209783,0.00054686,4]
[321157039,1711921842954,-300.0,0.00054686,4]
[321157040,1711921842978,-62234.01828603,0.00054686,4]
[321157041,1711921842989,-49673.3897671,0.00054686,4]
[321157042,1711921843000,-23116.49453771,0.00054686,4]
[321157043,1711921843011,-6672.17843706,0.00054686,4]
[321157044,1711921843044,-600.64996105,0.00054686,4]
[321157047,1711921843301,-318.8115,0.00054686,4]
[321157048,1711921843318,-24504.47479113,0.00054686,4]
[321157057,1711921845576,-721.03466238,0.00054685,4]
[321157058,1711921845586,-24341.74176277,0.00054686,4]
[321157059,1711921845597,-3391.61117905,0.00054686,4]
[321157060,1711921845611,-16494.76932567,0.00054686,4]
[321157061,1711921845755,-560.5767819,0.00054686,4]
[321157062,1711921845877,-1125.55769554,0.00054686,4]
[321157063,1711921847547,-3239.95,0.00054686,4]
[321157064,1711921847585,-837952.63359679,0.00054686,4]
[321157079,1711921869514,444495.0,0.00025,2]
[321157080,1711921869556,91077.57228915,0.00025,2]
[321157081,1711921869631,1719671.46598594,0.00025,2]
[321157084,1711921916411,23629.22193247,6.94e-05,2]
[321157087,1711921944935,155.0,0.00025,2]
[321157088,1711921966864,155.0,0.00025,2]
[321157089,1711921972935,664.93,0.00025,2]
[321157090,1711921974039,1113.30595471,0.00025,2]
[321157091,1711921979650,19595.93656809,0.00025,2]
[321157093,1711921993660,11772.72996129,0.00025,2]
[321157096,1711922038030,38000.0,0.00025,2]
[321157097,1711922038055,1032885.18248649,0.00025,2]
[321157098,1711922069277,509.72401621,0.0003,2]
[321157100,1711922196777,178.66401072,0.0003,2]
[321157101,1711922197045,363.66320945,0.0003,4]
[321157102,1711922202628,341.66314673,0.0003,10]
[321157103,1711922336167,-482.2691,0.000399,120]
[321157104,1711922336190,-571.13387958,0.00048,120]
[321157105,1711922339031,-157.71,0.00037,2]
[321157106,1711922349675,-157.71,0.00037,2]
[321157107,1711922351284,-157.71,0.00037,2]
[321157108,1711922352473,-157.71,0.00037,2]
[321157109,1711922354202,-157.71,0.00037,2]
[321157110,1711922355115,-157.71,0.00037,2]
[321157111,1711922355932,-141.07419229,0.00037,2]
[321157112,1711922454095,-157.71,0.00037808,2]
[321157113,1711922454117,-161.78,0.00037808,2]
[321157114,1711922454139,-1163.90395,0.0003897,2]
[321157115,1711922454163,-159.85103724,0.000398,2]
[321157116,1711922454184,-1780.76709104,0.0003999,2]
[321157117,1711922454205,-471.58390347,0.00039999,4]
[321157118,1711922454226,-3973.86095518,0.00039999,4]
[321157119,1711922454248,-2200.51471822,0.0004,4]
[321157120,1711922454270,-2878.22200595,0.0004,4]
[321157121,1711922454291,-2452.25475071,0.0004,2]
[321157122,1711922454313,-4137.06,0.00042287,2]
[321157123,1711922454337,-152.59,0.000428,4]
[321157124,1711922454360,-152.59,0.000428,4]
[321157125,1711922454382,-152.59,0.000428,4]
[321157126,1711922454405,-152.59,0.000428,4]
[321157127,1711922454427,-152.59,0.000428,4]
[321157128,1711922454450,-152.59,0.000428,4]
[321157129,1711922454475,-404.18,0.000428,2]
[321157130,1711922454498,-280.95,0.000428,2]
[321157131,1711922454519,-685.31,0.000428,2]
[321157132,1711922457518,400.0,0.00042384,2]
[321157133,1711922468394,845.28491184,0.00042285,2]
[321157135,1711922514249,678.75039765,0.00042384,4]
[321157136,1711922515854,2000.0,0.00042384,2]
[321157137,1711922516176,155.68722727,0.00042384,4]
[321157138,1711922520708,503.53,0.00042384,4]
[321157139,1711922530795,262.41497348,0.00042384,4]
[321157140,1711922532244,203.10678756,0.00042384,4]
[321157142,1711922569262,563.52327456,0.00042285,2]
[321157144,1711922579441,434.99951718,0.00042384,4]
[321157146,1711922680149,431.01633087,0.00042384,4]
[321157147,1711922749312,446.39466083,0.00042383,4]
[321157148,1711922788182,157.48494262,0.00042284,2]
[321157161,1711922851948,4048.75672154,0.00042383,4]
[321157162,1711922869986,22071.60084188,0.00042383,4]
[321157163,1711922879188,159.74,0.00037808,2]
[321157164,1711922905720,940.8187,0.00042284,2]
[321157165,1711922921172,177.67,0.00024,2]
[321157169,1711922992834,375.68218304,0.0004226,2]
[321157201,1711923031984,-1511.73373942,0.0004236,2]
[321157202,1711923032053,-6970.10833506,0.0004236,2]
[321157203,1711923032066,-7085.0,0.0004236,2]
[321157213,1711923037797,-277.3173,0.0004236,2]
[321157214,1711923037960,-7282.57717018,0.0004236,2]
[321157215,1711923038018,-38717.01717003,0.0004236,2]
[321157216,1711923038027,-3883.70900597,0.0004236,2]
[321157217,1711923038037,-511.67336748,0.0004236,2]
[321157218,1711923038046,-5322.33502877,0.0004236,2]
[321157219,1711923038055,-300.000001,0.0004236,2]
[321157220,1711923038064,-499.999999,0.0004236,2]
[321157221,1711923038073,-2097.27335405,0.0004236,2]
[321157222,1711923038082,-22425.18158942,0.0004236,2]
[321157223,1711923038091,-21770.00279156,0.0004236,2]
[321157224,1711923038099,-407.0,0.0004236,2]
[321157225,1711923038108,-316.43398512,0.0004236,2]
[321157226,1711923038117,-342.98590473,0.0004236,2]
[321157227,1711923038126,-152.6,0.000428,4]
[321157229,1711923038135,-152.6,0.000428,4]
[321157231,1711923038145,-152.6,0.000428,4]
[321157232,1711923038154,-152.6,0.000428,4]
[321157234,1711923038163,-166.77686977,0.00047471,30]
[321157236,1711923038173,-375.68218302,0.0004808,2]
[321157238,1711923038183,-152.6,0.000484,6]
[321157240,1711923038192,-152.6,0.000484,6]
[321157241,1711923038201,-152.6,0.000484,6]
[321157243,1711923038210,-152.6,0.000484,6]
[321157245,1711923038220,-1973.80964055,0.00049,120]
[321157247,1711923038229,-999.999999,0.0005,2]
[321157249,1711923038239,-229.0,0.0005,8]
[321157251,1711923038247,-336.49,0.00050815,2]
[321157252,1711923038256,-247.00655877,0.00051404,4]
[321157254,1711923038275,-1001.61874031,0.00051405,4]
[321157256,1711923038285,-14315.04364054,0.00051405,4]
[321157258,1711923038294,-163.721946,0.00051406,4]
[321157260,1711923038304,-14203.838585,0.00051406,4]
[321157262,1711923038313,-155.0,0.00051406,4]
[321157264,1711923038322,-555.11925325,0.00051406,4]
[321157266,1711923038331,-155.86726149,0.00051406,4]
[321157268,1711923038340,-651.56085048,0.00051406,4]
[321157270,1711923038349,-497.14667322,0.00051406,4]
[321157272,1711923038358,-186.64239769,0.00051407,4]
[321157274,1711923038368,-251.55515893,0.00051407,4]
[321157276,1711923038377,-157.27631021,0.00051407,4]
[321157294,1711923038555,-200.93162727,0.00051407,4]
[321157296,1711923038565,-862.72839835,0.00051408,30]
[321157298,1711923038574,-277.90877333,0.00051624,4]
[321157300,1711923038583,-254.56799923,0.00051625,4]
[321157302,1711923038592,-755.47855788,0.00051625,4]
[321157304,1711923038601,-155.13457552,0.00051625,4]
[321157305,1711923038611,-155.24592902,0.00051625,4]
[321157307,1711923038620,-200.0,0.00051626,120]
[321157308,1711923038629,-2058.0,0.00052055,120]
[321157309,1711923038638,-2058.0,0.00052055,120]
[321157310,1711923038647,-516.4,0.00052504,2]
[321157311,1711923038656,-150.05,0.00052533,120]
[321157312,1711923038665,-210.45,0.00052537,120]
[321157313,1711923038674,-1000.0,0.00052559,30]
[321157314,1711923038683,-664.44,0.00052575,120]
[321157315,1711923038691,-558.78,0.00052577,2]
[321157316,1711923038702,-192.35,0.00052608,2]
[321157317,1711923038711,-800.0,0.00052608,120]
[321157318,1711923038720,-1210.69,0.00052645,30]
[321157320,1711923038729,-260.08,0.00052708,120]
[321157321,1711923038738,-200.0,0.00052738,2]
[321157323,1711923038747,-250.0,0.00052738,120]
[321157325,1711923038756,-500.0,0.00052745,120]
[321157327,1711923038765,-4612.5583,0.00052827,2]
[321157329,1711923038774,-2043.0,0.00052903,117]
[321157331,1711923038783,-154.59,0.00052919,2]
[321157333,1711923038792,-336.49,0.00053079,2]
[321157335,1711923038801,-2143.20134256,0.00053602,2]
[321157337,1711923038810,-20179.13988497,0.00053602,2]
[321157339,1711923038821,-24217.88617886,0.00053625,60]
[321157341,1711923038830,-375.68218302,0.000539,120]
[321157343,1711923038840,-339.0,0.00054,120]
[321157345,1711923038849,-339.0,0.00054,120]
[321157347,1711923038858,-339.0,0.00054,120]
[321157349,1711923038867,-339.0,0.00054,120]
[321157351,1711923038877,-339.0,0.00054,120]
[321157353,1711923038886,-339.0,0.00054,120]
[321157355,1711923038895,-339.0,0.00054,120]
[321157357,1711923038905,-339.0,0.00054,120]
[321157359,1711923038914,-339.0,0.00054,120]
[321157361,1711923038923,-339.0,0.00054,120]
[321157363,1711923038934,-152.6,0.000541,7]
[321157365,1711923038947,-152.6,0.000541,7]
[321157367,1711923038956,-152.6,0.000541,7]
[321157369,1711923038966,-152.6,0.000541,7]
[321157371,1711923038975,-599.9408,0.0005413,69]
[321157373,1711923038984,-162.92276017,0.00054134,3]
[321157375,1711923038993,-1354.03,0.00054137,30]
[321157377,1711923039002,-177.21,0.0005417,2]
[321157379,1711923039013,-186.5973902,0.00054313,7]
[321157381,1711923039022,-150.0,0.00054344,7]
[321157383,1711923039032,-599.94081,0.0005435,70]
[321157385,1711923039041,-150.0,0.00054358,7]
[321157387,1711923039050,-150.0,0.00054394,7]
[321157389,1711923039059,-150.0,0.00054404,7]
[321157391,1711923039068,-332.79951347,0.00054413,6]
[321157393,1711923039078,-1081.41,0.00054428,120]
[321157395,1711923039087,-1383.0,0.00054428,120]
[321157397,1711923039095,-538.0,0.00054428,120]
[321157399,1711923039104,-1226.0,0.00054428,120]
[321157401,1711923039114,-1254.0,0.00054428,120]
[321157402,1711923039123,-2985.0,0.00054428,120]
[321157404,1711923039132,-1437.917,0.00054428,120]
[321157406,1711923039141,-1139.0,0.00054428,120]
[321157408,1711923039150,-2427.0,0.00054428,120]
[321157411,1711923039160,-150.0,0.0005443,7]
[321157412,1711923039169,-150.0,0.00054435,7]
[321157415,1711923039179,-150.0,0.0005445,7]
[321157417,1711923039189,-1629.0,0.00054453,120]
[321157419,1711923039199,-703.982,0.00054453,120]
[321157421,1711923039208,-150.0,0.00054459,7]
[321157423,1711923039217,-1000.0,0.00054494,2]
[321157425,1711923039227,-1000.0,0.00054494,2]
[321157427,1711923039236,-2500.0,0.00054494,2]
[321157429,1711923039245,-150.0,0.00054494,7]
[321157431,1711923039254,-150.0,0.0005451,7]
[321157433,1711923039263,-150.0,0.0005451,7]
[321157435,1711923039273,-150.0,0.00054524,7]
[321157437,1711923039282,-150.0,0.00054537,7]
[321157438,1711923039291,-150.0,0.0005454,7]
[321157440,1711923039300,-150.0,0.00054543,7]
[321157442,1711923039309,-150.0,0.00054559,7]
[321157444,1711923039318,-150.0,0.00054561,7]
[321157447,1711923039327,-150.0,0.00054573,7]
[321157449,1711923039337,-150.0,0.00054579,7]
[321157451,1711923039346,-536.48,0.00054584,2]
[321157453,1711923039355,-303.63488174,0.0005459,7]
[321157455,1711923039364,-3543.15531551,0.00054592,7]
[321157457,1711923039373,-1003.4105,0.00054593,30]
[321157459,1711923039382,-245000.0,0.00054594,2]
[321157461,1711923039391,-150.0,0.000546,7]
[321157462,1711923039400,-480.0,0.000546,44]
[321157465,1711923039409,-473.0,0.000546,33]
[321157467,1711923039419,-150.0,0.00054628,7]
[321157469,1711923039428,-150.0,0.00054632,7]
[321157471,1711923039437,-150.0,0.00054672,7]
[321157473,1711923039447,-154.1,0.00054673,120]
[321157475,1711923039456,-289.04566703,0.00054673,2]
[321157477,1711923039465,-536.48,0.00054673,2]
[321157479,1711923039476,-17648.1518462,0.00054678,2]
[321157481,1711923039485,-150.0,0.00054682,7]
[321157483,1711923039494,-144039.1390729,0.00054683,2]
[321157485,1711923039503,-4440.7592187,0.00054683,2]
[321157487,1711923039512,-536.48,0.00054684,2]
[321157490,1711923039520,-1754.92893969,0.00054684,4]
[321157492,1711923039529,-2340.53772574,0.00054685,4]
[321157494,1711923039539,-14726.05387638,0.00054686,4]
[321157497,1711923039549,-316.99282213,0.00054686,4]
[321157499,1711923039558,-40724.69445321,0.00054686,4]
[321157501,1711923039567,-838.06132381,0.00054686,2]
[321157503,1711923039576,-150.0,0.00054689,7]
[321157505,1711923039585,-298.71277744,0.00054691,2]
[321157507,1711923039595,-100000.0,0.00054694,2]
[321157509,1711923039604,-159.53928892,0.00054694,32]
[321157511,1711923039613,-157.48494261,0.00054694,2]
[321157514,1711923039623,-2202.66300951,0.000547,5]
[321157516,1711923039632,-150.0,0.000547,120]
[321157518,1711923039641,-350.542457,0.000547,33]
[321157520,1711923039650,-160.0,0.0005472,77]
[321157522,1711923039659,-2143.20134252,0.00054746,2]
[321157524,1711923039668,-20179.13988497,0.00054746,2]
[321157526,1711923039678,-2209.0486023,0.00054747,120]
[321157528,1711923039687,-234.5,0.00054759,15]
[321157530,1711923039697,-150.5,0.00054769,15]
[321157532,1711923039707,-150.5,0.00054779,15]
[321157534,1711923039717,-536.48,0.00054783,30]
[321157536,1711923039726,-536.48,0.00054784,30]
[321157538,1711923039735,-155.0,0.00054787,4]
[321157540,1711923039744,-1925.06916328,0.00054787,4]
[321157542,1711923039753,-1921.27100375,0.00054787,4]
[321157544,1711923039762,-761.77694091,0.00054787,4]
[321157546,1711923039772,-1318.06273863,0.00054787,4]
[321157548,1711923039781,-621.7729378,0.00054787,4]
[321157550,1711923039790,-986.48799922,0.00054788,11]
[321157552,1711923039800,-161.83868609,0.00054788,2]
[321157554,1711923039809,-2167.63942865,0.00054788,4]
[321157556,1711923039818,-2000.0,0.00054793,120]
[321157558,1711923039827,-2000.0,0.00054793,120]
[321157560,1711923039837,-2000.0,0.00054793,120]
[321157562,1711923039846,-508.86253076,0.00054794,30]
[321157564,1711923039856,-559.53689005,0.00054794,120]
[321157566,1711923039865,-500.0,0.00054794,120]
[321157568,1711923039875,-500.0,0.00054794,120]
[321157570,1711923039884,-500.0,0.00054794,120]
[321157572,1711923039893,-326.29534495,0.00054794,120]
[321157573,1711923039902,-509.27349607,0.00054794,120]
[321157576,1711923039911,-500.0,0.00054794,120]
[321157578,1711923039921,-500.0,0.00054794,120]
[321157580,1711923039931,-404.51906808,0.00054794,120]
[321157582,1711923039944,-500.0,0.00054794,120]
[321157584,1711923039955,-500.0,0.00054794,120]
[321157586,1711923039964,-328.6211733,0.00054794,120]
[321157588,1711923039974,-500.0,0.00054794,120]
[321157589,1711923039983,-543.99014824,0.00054794,120]
[321157591,1711923039993,-500.0,0.00054794,120]
[321157594,1711923040003,-500.0,0.00054794,120]
[321157596,1711923040013,-500.0,0.00054794,120]
[321157597,1711923040023,-500.0,0.00054794,120]
[321157599,1711923040033,-500.0,0.00054794,120]
[321157602,1711923040042,-497.0,0.00054794,120]
[321157603,1711923040051,-498.80319686,0.00054794,120]
[321157606,1711923040061,-452.65285788,0.00054794,120]
[321157608,1711923040070,-152.77370505,0.00054794,120]
[321157610,1711923040079,-500.0,0.00054794,120]
[321157612,1711923040088,-500.0,0.00054794,120]
[321157614,1711923040096,-500.0,0.00054794,120]
[321157616,1711923040105,-624.91953765,0.00054794,120]
[321157618,1711923040114,-500.0,0.00054794,120]
[321157620,1711923040123,-500.0,0.00054794,120]
[321157622,1711923040132,-509.09833325,0.00054794,120]
[321157624,1711923040141,-500.0,0.00054794,16]
[321157626,1711923040150,-500.0,0.00054794,120]
[321157628,1711923040159,-503.27927921,0.00054794,120]
[321157630,1711923040167,-500.0,0.00054794,120]
[321157632,1711923040176,-500.0,0.00054794,120]
[321157634,1711923040185,-503.22325362,0.00054794,30]
[321157636,1711923040195,-500.0,0.00054794,120]
[321157637,1711923040205,-251.90984777,0.00054794,120]
[321157639,1711923040214,-500.0,0.00054794,120]
[321157641,1711923040223,-500.0,0.00054794,120]
[321157643,1711923040233,-500.0,0.00054794,120]
[321157645,1711923040242,-500.0,0.00054794,120]
[321157647,1711923040251,-500.0,0.00054794,120]
[321157649,1711923040261,-608.22054822,0.00054794,120]
[321157652,1711923040271,-500.0,0.00054794,120]
[321157653,1711923040281,-500.0,0.00054794,120]
[321157656,1711923040290,-500.0,0.00054794,120]
[321157658,1711923040299,-500.0,0.00054794,120]
[321157660,1711923040308,-500.0,0.00054794,120]
[321157662,1711923040317,-500.0,0.00054794,120]
[321157664,1711923040326,-500.0,0.00054794,120]
[321157665,1711923040335,-500.0,0.00054794,120]
[321157667,1711923040343,-500.0,0.00054794,120]
[321157669,1711923040352,-500.0,0.00054794,120]
[321157671,1711923040361,-216.25385939,0.00054794,120]
[321157673,1711923040370,-500.0,0.00054794,120]
[321157677,1711923040380,-500.0,0.00054794,120]
[321157679,1711923040389,-500.0,0.00054794,120]
[321157680,1711923040398,-500.0,0.00054794,120]
[321157682,1711923040407,-500.0,0.00054794,120]
[321157684,1711923040416,-500.0,0.00054794,120]
[321157687,1711923040425,-500.0,0.00054794,120]
[321157689,1711923040434,-500.0,0.00054794,120]
[321157691,1711923040443,-500.0,0.00054794,120]
[321157693,1711923040453,-500.0,0.00054794,120]
[321157694,1711923040462,-500.0,0.00054794,120]
[321157696,1711923040471,-600.0,0.00054794,2]
[321157697,1711923040481,-500.0,0.00054794,120]
[321157698,1711923040491,-500.0,0.00054794,120]
[321157699,1711923040501,-500.0,0.00054794,120]
[321157700,1711923040510,-500.0,0.00054794,120]
[321157701,1711923040519,-500.0,0.00054794,120]
[321157702,1711923040529,-500.0,0.00054794,120]
[321157703,1711923040539,-500.0,0.00054794,120]
[321157704,1711923040548,-500.0,0.00054794,120]
[321157705,1711923040557,-533.04184379,0.00054794,120]
[321157706,1711923040566,-500.0,0.00054794,120]
[321157707,1711923040575,-500.0,0.00054794,120]
[321157708,1711923040584,-500.0,0.00054794,120]
[321157709,1711923040593,-500.0,0.00054794,120]
[321157710,1711923040602,-500.0,0.00054794,120]
[321157711,1711923040612,-500.0,0.00054794,120]
[321157712,1711923040621,-500.0,0.00054794,120]
[321157713,1711923040630,-505.50705981,0.00054794,120]
[321157714,1711923040640,-500.0,0.00054794,120]
[321157715,1711923040650,-500.0,0.00054794,120]
[321157716,1711923040659,-500.0,0.00054794,120]
[321157717,1711923040669,-390.50968248,0.00054794,120]
[321157718,1711923040678,-500.0,0.00054794,120]
[321157719,1711923040687,-500.0,0.00054794,120]
[321157720,1711923040698,-500.0,0.00054794,120]
[321157721,1711923040707,-407.06,0.00054794,120]
[321157722,1711923040716,-500.0,0.00054794,120]
[321157723,1711923040725,-500.0,0.00054794,120]
[321157724,1711923040734,-500.0,0.00054794,120]
[321157725,1711923040743,-500.0,0.00054794,120]
[321157726,1711923040753,-500.0,0.00054794,120]
[321157727,1711923040762,-500.0,0.00054794,120]
[321157728,1711923040771,-500.0,0.00054794,120]
[321157729,1711923040780,-500.0,0.00054794,120]
[321157730,1711923040790,-500.0,0.00054794,120]